Cogmind - Beta 14 @@@ ROGUE MODE // 2025.03.11 @ 14:24:35 Player: Caluan Result: Destroyed by S-27 Virus with Autogun Performance ------------- Evolutions (3) 1500 Regions Visited (8) 1600 Robots Destroyed (134) 670 Value Destroyed (4088) 4088 Prototype IDs (9) 180 Alien Tech Used (0) 0 Bonus (292) 292 TOTAL SCORE: 8330 Bonus ------- High Alert Combat Kills 272 Follower Combat Kills 58 Friendly Fire -38 Cogmind --------- Core Integrity 0/700 Matter 43/300 Energy 99/100 System Corruption 7% Temperature Cool (0) Movement Core (50) Location -7/Factory Parts ------- > --- POWER (1) -------- (None) > --- PROPULSION (4) --- (None) > --- UTILITY (5) ------ (None) > --- WEAPON (3) ------- (None) > --- INVENTORY (5) ---- Medium Treads Medium Treads Improved Light Cannon Mini Assault Cannon Heavy Flail Peak State ------------ > --- POWER ------------ Deuterium Engine > --- PROPULSION ------- Improved Treads Improved Treads Improved Treads Improved Treads > --- UTILITY ---------- Huge Storage Unit Seismic Detector Kinecellerator Transmission Jammer Shield Generator > --- WEAPON ----------- Enhanced Autogun Enhanced Autogun Flak Cannon > --- INVENTORY -------- Reinforced Ion Engine Light Nuclear Core Enhanced Nuclear Core Improved Treads Improved Treads Improved Treads Medium Treads Improved Terrain Scanner Light Armor Plating Light Armor Plating System Shield System Shield Improved Trap Extractor High-powered Shotgun Precision Assault Rifle Improved Light Cannon Flak Cannon Flak Cannon Advanced Assault Cannon Gauss Cannon Mini Assault Cannon Mini Assault Cannon Mini Assault Cannon Improved Grenade Launcher Heavy Flail [Rating: 42] Favorites ----------- Power Improved Ion Engine Engine Improved Ion Engine Power Core Light Nuclear Core Propulsion Improved Treads Treads Improved Treads Wheel Armored Wheel Utility Hacking Suite Device Seismic Detector Storage High-capacity Storage Unit Hackware Hacking Suite Protection Improved Propulsion Shielding Weapon Improved Light Cannon Energy Gun Particle Gun Ballistic Gun Enhanced Autogun Ballistic Cannon Improved Light Cannon Launcher Mini Grenade Launcher Impact Weapon Hammer Build | -11 -10 -10 -9 -9 -9 -8 -8 -7 ------- Run | Yrd Mat Min Mat Min Exi Min Mat Fac Slots Evolved 6 | . . . 2 . . . 2 2 Power . | . . . . . . . . . Propulsion 2 | . . . 1 . . . 1 . Utility 3 | . . . 1 . . . 1 1 Weapon 1 | . . . . . . . . 1 Parts Attached 107 | 7 21 2 12 10 . 7 22 26 Power 11 | 2 4 1 1 . . 1 2 . Engine 10 | 2 4 . 1 . . 1 2 . Core 1 | . . 1 . . . . . . Reactor . | . . . . . . . . . Propulsion 26 | 2 6 . 2 . . 3 7 6 Treads 20 | 2 2 . . . . 3 7 6 Leg . | . . . . . . . . . Wheel 6 | . 4 . 2 . . . . . Hover . | . . . . . . . . . Flight . | . . . . . . . . . Utility 25 | 1 3 . 6 2 . 1 6 6 Device 7 | 1 1 . 1 . . . . 4 Storage 3 | . 1 . 1 . . . 1 . Processor . | . . . . . . . . . Hackware 1 | . 1 . . . . . . . Protection 14 | . . . 4 2 . 1 5 2 Artifact . | . . . . . . . . . Weapon 45 | 2 8 1 3 8 . 2 7 14 Energy Gun 6 | 2 4 . . . . . . . Energy Cannon . | . . . . . . . . . Ballistic Gun 9 | . . . . 1 . . 5 3 Ballistic Cannon 20 | . 2 1 2 4 . 1 2 8 Launcher 5 | . . . 1 2 . 1 . 1 Special Weapon . | . . . . . . . . . Impact Weapon 5 | . 2 . . 1 . . . 2 Slashing Weapon . | . . . . . . . . . Piercing Weapon . | . . . . . . . . . Special Melee Weapon . | . . . . . . . . . Unidentified Prototypes 2 | . . . . . . . . 2 Parts Lost 46 | . 2 . . 6 . 3 12 23 Power 3 | . . . . . . 1 1 1 Propulsion 17 | . 1 . . 1 . 1 5 9 Utility 14 | . . . . 2 . 1 5 6 Weapon 12 | . 1 . . 3 . . 1 7 Highest Loss Streak 15 | . 1 . . 3 . 3 5 15 To Critical Strikes 1 | . . . . . . . . 1 Average Slot Usage (%) 89 | . 96 99 96 88 88 81 91 74 Engine 8 | . 14 4 1 11 11 11 8 6 Core 1 | . . 9 9 . . . . . Treads 17 | . 17 . . . . . 35 24 Wheel 11 | . 10 28 32 22 22 16 . . Device 5 | . 13 . . . . . . 15 Storage 7 | . . 14 11 11 11 11 9 6 Hackware 7 | . 12 14 11 11 11 11 3 . Protection 7 | . . . 7 11 11 9 15 . Energy Gun 2 | . 13 . . . . . . . Ballistic Gun 4 | . . . . 2 . . 14 1 Ballistic Cannon 12 | . 5 26 21 16 22 19 3 17 Impact Weapon 1 | . 8 1 . . . . . . Peak Build Rating 42 | 6 16 16 22 22 20 21 33 42 Average Rating 21 | 4 11 15 20 19 20 18 27 28 On Entrance 15 | . 6 14 16 22 20 20 21 22 Naked Turns 26 | . . . . . . . . 26 Heaviest Build 115 | 9 33 35 63 63 58 58 101 115 Greatest Support 97 | 40 40 24 36 36 24 69 92 97 Greatest Overweight (x) 30 | . 2 1 2 2 2 4 1 30 Average Overweight (x) . | . . 1 . 1 2 2 . 1 Largest Inventory Capacity 25 | 5 15 15 20 20 20 20 25 25 Average Capacity 17 | 5 5 15 17 20 20 20 22 23 Most Carried 25 | 5 6 7 20 20 19 19 21 25 Average Carried 14 | 3 4 6 13 18 19 18 17 17 Final Capacity 25 | 5 15 15 20 20 20 20 25 5 Final Carried 19 | 4 6 7 18 19 19 14 17 5 Class Distribution -------------------- 76% | Mutant 9% | Scavenger-Mutant 6% | Gunner 5% | Tank Dominant Class ---------------- Scavenger-Mutant | -10/Materials Mutant | -10/Mines Mutant | -9/Materials Mutant | -9/Mines Mutant | -9/Exiles Mutant | -8/Mines Mutant | -8/Materials Gunner | -7/Factory Resources | -11 -10 -10 -9 -9 -9 -8 -8 -7 ----------- Run | Yrd Mat Min Mat Min Exi Min Mat Fac Matter Collected 3103 | 152 255 186 420 239 . 28 1459 364 Remotely . | . . . . . . . . . Salvage Created 3724 | 179 480 95 774 101 . 26 1677 392 Parts 237 | 17 28 8 60 10 . 2 91 21 Haulers Intercepted 10 | . 2 . 5 . . . 2 1 Recyclers Shooed 1 | . . . . . . . 1 . Parts Field Recycled . | . . . . . . . . . Retrieved Matter . | . . . . . . . . . Parts Self-Destructed . | . . . . . . . . . Prevented . | . . . . . . . . . Kills | -11 -10 -10 -9 -9 -9 -8 -8 -7 ------- Run | Yrd Mat Min Mat Min Exi Min Mat Fac Combat Hostiles Destroyed 107 | . 13 5 19 12 . 3 40 15 Melee 1 | . . . . 1 . . . . Guns 43 | . 10 . . . . . 32 1 Cannons 49 | . . 5 15 9 . 2 8 10 AOE 12 | . 1 . 4 2 . 1 . 4 Classes Destroyed 17 | 2 5 . 2 1 . . 3 4 Worker 1 | . . . . . . . . 1 Builder 2 | . . . . . . . 1 1 Tunneler 4 | 4 . . . . . . . . Hauler 10 | . 2 . 5 . . . 2 1 Recycler 4 | 1 . . . . . . 2 1 Mechanic 1 | . . . . . . . . 1 Operator 3 | . 1 . 2 . . . . . Watcher 2 | . 1 . 1 . . . . . Swarmer 31 | . 6 3 7 8 . . 7 . Grunt 37 | . 7 2 4 . . 3 17 4 Brawler 3 | . . . 1 . . . 2 . Duelist 2 | . . . . . . . 2 . Sentry 20 | . . . 7 2 . . 10 1 Demolisher 2 | . . . . 2 . . . . Specialist 4 | . . . . . . . 2 2 Hunter 4 | . . . . . . . . 4 Programmer 4 | . . . . . . . . 4 Best Kill Streak 6 | 2 4 3 5 4 . 3 4 6 Combat Bots Only 5 | . 4 3 5 4 . 3 3 4 Max Kills in Single Turn 4 | 1 1 1 4 2 . 1 2 2 Gunslinging . | . . . . . . . . . Exploded 4 | . 1 . 4 2 . 1 . 2 Melee 1 | . . . . 1 . . . . Uniques/NPCs Destroyed . | . . . . . . . . . Combat | -11 -10 -10 -9 -9 -9 -8 -8 -7 -------- Run | Yrd Mat Min Mat Min Exi Min Mat Fac Hostile Shots Fired 810 | . 84 22 36 50 . 18 260 340 Missed 248 | . 29 7 9 7 . 5 73 118 Damage Taken 8639 | . 601 132 302 845 . 263 2810 3686 Core 1323 | . 74 22 39 91 . 34 355 708 Absorbed by Shields 159 | . . . . . . . . 159 Redirected to Shielding 314 | . . . . . . . 314 . Regen/Repaired (Parts) 224 | . . . 52 . . . 172 . Core Remaining (%) 63 | 100 . 61 . . . 59 35 . Volleys Fired 314 | 11 51 10 36 24 . 10 137 35 Largest 3 | 2 2 2 2 2 . 2 2 3 Hottest 132 | 80 105 78 78 78 . 78 88 132 Shots Fired 595 | 22 82 20 71 41 . 13 274 72 Gun 315 | 22 80 . . 1 . . 205 7 Cannon 267 | . 2 20 70 39 . 8 69 59 Launcher 13 | . . . 1 1 . 5 . 6 Special . | . . . . . . . . . Kinetic 480 | . 2 20 70 40 . 8 274 66 Thermal 67 | 11 56 . . . . . . . Explosive 13 | . . . 1 1 . 5 . 6 Electromagnetic 35 | 11 24 . . . . . . . Robot Hit Streak 16 | 4 10 4 6 9 . 11 16 7 Robot Miss Streak 12 | 1 3 2 3 3 . 1 5 12 Penetration Max . | . . . . . . . . . Secondary Targets 2 | . . . . . . . 2 . Max Gunslinging Chain 1 | . . . . . . . 1 . Shots Hit Robots 431 | 15 63 11 39 29 . 11 211 52 Core Hits 267 | 5 22 6 30 13 . 8 110 73 Critical Kills . | . . . . . . . . . Critical Parts Destroyed 3 | . 1 . . . . . 2 . Critical Strikes 17 | . 3 . 4 3 . . 4 3 Burn 1 | . 1 . . . . . . . Destroy 2 | . . . . . . . 2 . Blast 12 | . . . 4 3 . . 2 3 Corrupt 1 | . 1 . . . . . . . Smash 1 | . 1 . . . . . . . Melee Attacks 17 | . 10 4 . 2 . . . 1 Impact 17 | . 10 4 . 2 . . . 1 Slashing . | . . . . . . . . . Piercing . | . . . . . . . . . Sneak Attacks 1 | . 1 . . . . . . . Combat Hostiles . | . . . . . . . . . Follow-up Attacks . | . . . . . . . . . Damage Inflicted 10677 | 233 1004 240 1030 735 . 563 4054 2818 Guns 3979 | 185 744 . . 15 . . 2948 87 Cannons 3882 | . . 216 885 549 . 168 1094 970 Explosions 2478 | 48 86 . 145 113 . 395 . 1691 Melee 314 | . 174 24 . 58 . . . 58 Ramming 24 | . . . . . . . 12 12 Kinetic 6932 | . . 216 885 564 . 168 4042 1057 Thermal 866 | 136 613 . . . . . . 117 Explosive 2227 | . . . 145 113 . 395 . 1574 Electromagnetic 314 | 97 217 . . . . . . . Impact 314 | . 174 24 . 58 . . . 58 Slashing . | . . . . . . . . . Piercing . | . . . . . . . . . Highest Corruption 7 | . 1 1 . . . . 4 7 Average Corruption 2 | . 1 1 . . . . 4 4 Corruption Purged . | . . . . . . . . . Corruption Blocked . | . . . . . . . . . Effects 34 | . 7 3 . . . . 2 22 Message Errors 4 | . 1 . . . . . . 3 Matter Fused 9 | . 2 1 . . . . 1 5 Heat Flow Errors 5 | . 1 . . . . . . 4 Energy Discharges 7 | . 2 . . . . . 1 4 Parts Rejected 2 | . . 1 . . . . . 1 Parts Fused 1 | . 1 . . . . . . . Data Loss (minor) 5 | . . 1 . . . . . 4 Misfires 1 | . . . . . . . . 1 Overload Shots . | . . . . . . . . . Overflow Damage 169 | . 28 4 1 1 . 28 . 107 Projectiles 18 | . . . 1 1 . 16 . . Explosions 77 | . . . . . . 12 . 65 Melee 74 | . 28 4 . . . . . 42 Knockbacks 57 | . 1 . 3 2 . 2 23 26 Impact 2 | . 1 . . . . . . 1 Kinetic 52 | . . . 3 2 . 2 20 25 Secondary 3 | . . . . . . . 3 . Self-Inflicted Damage 282 | . 19 . 8 25 . 39 . 191 Shots 6 | . 1 . 1 1 . 1 . 2 Rammed 8 | . . . . . . . 3 5 Targets Rammed 9 | . . . . . . . 3 6 Kicked . | . . . . . . . . . Crushed 1 | . . . . . . . . 1 Highest Temperature 270 | 54 249 126 108 126 . 86 252 270 Average Temperature 60 | 24 101 52 29 40 . 37 62 65 Received Heat Transfer 1647 | . 198 30 78 54 . 135 945 207 Effects 1 | . . . . . . . 1 . Energy Bleed 1 | . . . . . . . 1 . Siege Activations . | . . . . . . . . . Robots Corrupted 2 | . 2 . . . . . . . Combat Hostiles 2 | . 2 . . . . . . . Parts Fried 1 | . 1 . . . . . . . Impact Corruptions 6 | . 4 1 . . . . . 1 Robots Melted . | . . . . . . . . . Combat Hostiles . | . . . . . . . . . Parts Melted 1 | . 1 . . . . . . . Heat Transferred 1778 | 250 1428 . . . . . . 100 Parts Sabotaged . | . . . . . . . . . Parts Stolen . | . . . . . . . . . Parts Stripped . | . . . . . . . . . Power Chain Reactions 2 | 1 1 . . . . . . . Alert | -11 -10 -10 -9 -9 -9 -8 -8 -7 ------- Run | Yrd Mat Min Mat Min Exi Min Mat Fac Peak Influence 687 | 25 288 147 453 397 . 116 687 312 Initial 312 | . 16 26 . 157 . . 44 312 Average 204 | 10 140 76 131 219 . 55 329 186 Maximum Alert Level 2 | . 1 . 2 1 . . 2 1 Low Security (%) 60 | 100 75 100 72 39 . 100 36 68 Level 1 23 | . 24 . 22 60 . . 12 31 Level 2 15 | . . . 5 . . . 50 . Level 3 . | . . . . . . . . . Level 4 . | . . . . . . . . . Level 5 . | . . . . . . . . . High Security . | . . . . . . . . . Max Security . | . . . . . . . . . Squads Dispatched 23 | . 4 . 3 . . . 11 5 Investigation 7 | . 1 . 1 . . . 4 1 Extermination 1 | . . . . . . . . 1 Reinforcement 9 | . 3 . 2 . . . 2 2 Assault 3 | . . . . . . . 2 1 Garrison 3 | . . . . . . . 3 . Intercept . | . . . . . . . . . Searches Triggered . | . . . . . . . . . Construction Impeded . | . . . . . . . . . Haulers Reinforced . | . . . . . . . . . Active Scanning Responses . | . . . . . . . . . Cargo Convoy Interrupts 1 | . . . . . . . . 1 Stealth | -11 -10 -10 -9 -9 -9 -8 -8 -7 --------- Run | Yrd Mat Min Mat Min Exi Min Mat Fac Distress Signals 21 | . 3 . 5 . . . 12 1 Communications Jammed 8 | . . . . . . . . 8 Distress Signals 8 | . . . . . . . . 8 Times Spotted 218 | . 42 5 35 14 . 8 77 37 Peak Tracking Total 11 | . 6 3 6 4 . 3 10 11 Tactical Retreats 23 | . 4 . 5 1 . 1 8 4 Traps | -11 -10 -10 -9 -9 -9 -8 -8 -7 ------- Run | Yrd Mat Min Mat Min Exi Min Mat Fac Traps Triggered 11 | . 8 . 2 . . . 1 . Indirectly . | . . . . . . . . . Trap Hack Attempts . | . . . . . . . . . Triggered . | . . . . . . . . . Disarmed . | . . . . . . . . . Reprogrammed . | . . . . . . . . . Reused . | . . . . . . . . . Traps Extracted . | . . . . . . . . . Installed . | . . . . . . . . . Triggered . | . . . . . . . . . Most Traps Carried 3 | . . . . 3 . . . . Machines | -11 -10 -10 -9 -9 -9 -8 -8 -7 ---------- Run | Yrd Mat Min Mat Min Exi Min Mat Fac Machines Disabled 8 | . . . 3 . . . 3 2 Max in Single Turn 2 | . . . 1 . . . 1 2 Garrison Access 1 | . . . . . . . . 1 Machines Repaired . | . . . . . . . . . Machines Dismantled . | . . . . . . . . . Machines Sabotaged . | . . . . . . . . . Overloaded Fab Kills . | . . . . . . . . . Hacking | -11 -10 -10 -9 -9 -9 -8 -8 -7 --------- Run | Yrd Mat Min Mat Min Exi Min Mat Fac Machines Accessed 28 | . 5 . 10 . . . 11 2 Terminals 22 | . 5 . 8 . . . 8 1 Fabricators 1 | . . . . . . . . 1 Repair Stations 3 | . . . 1 . . . 2 . Recycling Units . | . . . . . . . . . Scanalyzers 2 | . . . 1 . . . 1 . Garrison Access . | . . . . . . . . . Total Hacks 76 | . 16 . 25 . . . 32 3 Successful 48 | . 11 . 19 . . . 15 3 Failed 28 | . 5 . 6 . . . 17 . Catastrophic 5 | . . . 1 . . . 4 . Database Lockouts . | . . . . . . . . . Manual 49 | . 15 . 9 . . . 25 . Terminals 64 | . 16 . 21 . . . 26 1 Fabricators 2 | . . . . . . . . 2 Repair Stations 6 | . . . 2 . . . 4 . Recycling Units . | . . . . . . . . . Scanalyzers 4 | . . . 2 . . . 2 . Garrison Access . | . . . . . . . . . Terminal Hacks 15 | . 2 . 9 . . . 3 1 Part Schematic 1 | . 1 . . . . . . . Prototype ID Bank 4 | . . . 4 . . . . . Open DSF 1 | . . . . . . . . 1 Branch Access Points 2 | . . . 1 . . . 1 . Unreport Threat 4 | . . . 2 . . . 2 . Locate Traps 2 | . 1 . 1 . . . . . Registered Components 1 | . . . 1 . . . . . Fabricator Hacks 2 | . . . . . . . . 2 Load Schematic 1 | . . . . . . . . 1 Build 1 | . . . . . . . . 1 Repair Station Hacks 6 | . . . 2 . . . 4 . Scan Component 3 | . . . 1 . . . 2 . Repair 3 | . . . 1 . . . 2 . Recycling Unit Hacks . | . . . . . . . . . Scanalyzer 2 | . . . 2 . . . . . Insert Component 1 | . . . 1 . . . . . Analyze 1 | . . . 1 . . . . . Garrison Access Hacks . | . . . . . . . . . Unauthorized Hacks 23 | . 9 . 6 . . . 8 . Terminals 22 | . 9 . 6 . . . 7 . Assimilate 3 | . 3 . . . . . . . Botnet 17 | . 5 . 5 . . . 7 . Operators 2 | . 1 . 1 . . . . . Fabricators . | . . . . . . . . . Repair Stations . | . . . . . . . . . Recycling Units . | . . . . . . . . . Scanalyzers 1 | . . . . . . . 1 . Extract 1 | . . . . . . . 1 . Garrison Access . | . . . . . . . . . Data Cores Recovered . | . . . . . . . . . Used . | . . . . . . . . . Hacking Detections 21 | . 5 . 6 . . . 9 1 Full Trace Events 5 | . 1 . . . . . 3 1 Feedback Events . | . . . . . . . . . Feedback Blocked . | . . . . . . . . . Robot Schematics Acquired . | . . . . . . . . . Robots Built . | . . . . . . . . . Authchips . | . . . . . . . . . Time . | . . . . . . . . . Total Robot Build Rating . | . . . . . . . . . Part Schematics Acquired 3 | . 1 . 1 . . . 1 . Parts Built 2 | . . . . . . . . 2 Authchips . | . . . . . . . . . Time 62 | . . . . . . . . 62 Total Part Build Rating 4 | . . . . . . . . 4 Parts Repaired 3 | . . . 1 . . . 2 . Time 74 | . . . 26 . . . 48 . Parts Recycled . | . . . . . . . . . Recycled Matter . | . . . . . . . . . Retrieved Matter . | . . . . . . . . . Retrieved Components . | . . . . . . . . . Parts Scanalyzed 1 | . . . 1 . . . . . Part Schematics Acquired 1 | . . . 1 . . . . . Parts Damaged . | . . . . . . . . . Bothacking | -11 -10 -10 -9 -9 -9 -8 -8 -7 ------------ Run | Yrd Mat Min Mat Min Exi Min Mat Fac Used RIF Installer . | . . . . . . . . . Robots Hacked . | . . . . . . . . . Non-combat . | . . . . . . . . . Combat . | . . . . . . . . . Robot Hacks Applied . | . . . . . . . . . Relay Couplers Released 1 | . . . . . . . . 1 Machine Destruction 1 | . . . . . . . . 1 Fabnet Peak Effective % . | . . . . . . . . . Robots Rewired . | . . . . . . . . . Allies Hacked . | . . . . . . . . . Hacks Repelled . | . . . . . . . . . Allies | -11 -10 -10 -9 -9 -9 -8 -8 -7 -------- Run | Yrd Mat Min Mat Min Exi Min Mat Fac Total Allies 5 | . 1 3 . 1 . . . . Largest Group 4 | . 1 4 4 1 1 . . . Highest-Rated Group 50 | . 10 50 50 31 31 . . . Highest-Rated Ally 31 | . 10 16 16 31 31 . . . Total Orders . | . . . . . . . . . Ally Attacks 32 | . . . 32 . . . . . Total Damage 338 | . . . 338 . . . . . Kills 2 | . . . 2 . . . . . Allies Corrupted . | . . . . . . . . . Allies Melted . | . . . . . . . . . Intel | -11 -10 -10 -9 -9 -9 -8 -8 -7 ------- Run | Yrd Mat Min Mat Min Exi Min Mat Fac Robot Analysis Total . | . . . . . . . . . Derelict Logs Recovered 3 | . . 1 . 2 . . . . Drone Launches . | . . . . . . . . . Drone Recoveries . | . . . . . . . . . Exploration | -11 -10 -10 -9 -9 -9 -8 -8 -7 ------------- Run | Yrd Mat Min Mat Min Exi Min Mat Fac Turns Passed 9336 | 242 1686 585 916 1015 521 97 2604 1670 Spaces Moved 4963 | 128 1011 444 694 705 435 51 890 605 Core 61 | 11 2 . . . . . . 48 Treads 2049 | 117 484 . . . . 1 890 557 Legs . | . . . . . . . . . Wheels 2853 | . 525 444 694 705 435 50 . . Hover . | . . . . . . . . . Flight . | . . . . . . . . . Fastest Speed 50 | 50 85 105 90 105 120 120 160 50 Average Speed 144 | 150 124 105 97 119 120 127 197 232 Slowest Speed 1550 | 160 160 105 120 120 120 160 240 1550 Overloaded Moves . | . . . . . . . . . Propulsion Burnouts . | . . . . . . . . . Robots Hopped . | . . . . . . . . . Cave-ins Triggered . | . . . . . . . . . Exploration Rate (%) 61 | 8 99 95 69 99 79 18 70 18 Regions Visited 8 Branch Regions 4 Pre-discovered Areas 2 | . . 1 . 1 . . . . Known Exits Taken 2 | . . . 1 . . . 1 . Unknown Exits Taken 6 | 1 1 1 . 1 1 1 . . Scrap Searched 2 | . . 1 . 1 . . . . Spaces Dug 4 | . 3 . . . . . 1 . Terrain Destroyed 139 | 4 3 1 13 15 . 45 6 52 Melee 3 | . 3 . . . . . . . Projectile 9 | . . 1 . . . 1 6 1 AOE 127 | 4 . . 13 15 . 44 . 51 Terrain Rammed . | . . . . . . . . . Walls Destroyed . | . . . . . . . . . Machines Disabled . | . . . . . . . . . Actions | -11 -10 -10 -9 -9 -9 -8 -8 -7 --------- Run | Yrd Mat Min Mat Min Exi Min Mat Fac Total 6528 | 155 1334 535 868 835 434 70 1511 786 Wait 975 | . 218 74 87 83 . 2 427 84 Move 4955 | 127 1010 443 693 704 434 50 889 605 Hop . | . . . . . . . . . Pick Up 104 | 10 13 2 27 8 . . 25 19 Fast Attach 10 | . 6 . 1 1 . . . 2 Attach 65 | 6 7 1 6 5 . 5 16 19 Detach 6 | . 1 . 1 1 . . . 3 Swap 32 | 1 8 1 5 4 . 2 6 5 Drop 41 | . 10 . 12 3 . 1 8 7 Fire 314 | 11 51 10 36 24 . 10 137 35 Melee 17 | . 10 4 . 2 . . . 1 Ram 1 | . . . . . . . . 1 Kick . | . . . . . . . . . Crush 8 | . . . . . . . 3 5 Escape Stasis . | . . . . . . . . . Rewire . | . . . . . . . . . Trap . | . . . . . . . . . Miscellaneous . | . . . . . . . . . Route ------- -11/Scrapyard -10/Materials (discovered 6 exits: *Mat x3 / [*Min x2] / [*Sub]) -10/Mines (discovered 2 exits: *Mat x2) -9/Materials (discovered 5 exits: *Mat x3 / *Min x2) -9/Mines (discovered 3 exits: *Mat x2 / [*Exi]) -9/Exiles -8/Mines -8/Materials (discovered 3 exits: *Fac x3) -7/Factory History --------- Turn | Location | Event 5 | -11/Scrapyard | Discovered new exit (range 15) 243 | -11/Scrapyard | Entered Materials 301 | -10/Materials | Build established: Mutant 481 | -10/Materials | Discovered new exit (range 7) 805 | -10/Materials | Discovered new exit (range 16) 873 | -10/Materials | Build established: Scavenger-Mutant 970 | -10/Materials | Discovered new exit (range 7) 1247 | -10/Materials | Discovered new exit (range 9) 1514 | -10/Materials | Discovered new exit (range 5) 1714 | -10/Materials | Discovered new exit (range 15) 1772 | -10/Materials | Build established: Mutant 1929 | -10/Materials | Entered Mines 1929 | -10/Mines | Accompanied by 1 ally 1951 | -10/Mines | Learned location of Mines (-9) 2374 | -10/Mines | Assisted by bots powering up and referring to "LRC-V3" 2399 | -10/Mines | Discovered new exit (range 14) 2449 | -10/Mines | Discovered new exit (range 5) 2514 | -10/Mines | Entered Materials 2514 | -9/Materials | Accompanied by 4 allies 2514 | -9/Materials | Evolved 2 slots: Propulsion x1, Utility x1 2608 | -9/Materials | Lost 3 allies 2886 | -9/Materials | Discovered new exit (range 15) 3010 | -9/Materials | Identified exit to Mines 3053 | -9/Materials | Discovered new exit (range 10) 3258 | -9/Materials | Repaired Hammer 3265 | -9/Materials | Discovered new exit (range 3) 3430 | -9/Materials | Entered Mines 3431 | -9/Mines | Assembled infested the area 3526 | -9/Mines | Lost 3 parts (1n1u1w) 3535 | -9/Mines | Discovered new exit (range 10) 3656 | -9/Mines | Discovered new exit (range 15) 3741 | -9/Mines | Received a Rocket Launcher from a helpful Derelict 3814 | -9/Mines | Found a hidden stash of uninstalled traps 3940 | -9/Mines | Learned location of Storage (-7) 4044 | -9/Mines | Learned location of 1 exit from Materials 4190 | -9/Mines | A weapon hastily lodged in a ceiling crevice suddenly fell to the ground 4388 | -9/Mines | Received a Mining Laser from a helpful Derelict 4440 | -9/Mines | Deemed a non-threat by the Exiles lab entrance 4440 | -9/Mines | Discovered new exit (range 5) 4445 | -9/Mines | Entered Exiles 4445 | -9/Exiles | Accompanied by 1 ally 4480 | -9/Exiles | Met 8R-AWN 4498 | -9/Exiles | Met EX-HEX 4531 | -9/Exiles | Met EX-BIN 4672 | -9/Exiles | Met EX-DEC 4738 | -9/Exiles | Visited The Gauntlet 4951 | -9/Exiles | Discovered new exit (range 15) 4966 | -9/Exiles | Entered Mines 5012 | -8/Mines | Discovered new exit (range 9) 5063 | -8/Mines | Entered Materials 5063 | -8/Materials | Evolved 2 slots: Propulsion x1, Utility x1 5064 | -8/Materials | Identified exit to Factory 5065 | -8/Materials | Lost 3 parts (1p1n1u) 5600 | -8/Materials | Repaired Imp. Light Cannon 6149 | -8/Materials | Repaired Imp. Treads 6667 | -8/Materials | Discovered exit to Factory (range 13) 6884 | -8/Materials | Garrison activated, responded to threat 7354 | -8/Materials | Discovered exit to Factory (range 12) 7463 | -8/Materials | First assault squad dispatched 7566 | -8/Materials | Core integrity fell below 50% 7634 | -8/Materials | Lost 5 parts (1p3n1w) 7667 | -8/Materials | Entered Factory 7667 | -7/Factory | Evolved 2 slots: Utility x1, Weapon x1 8048 | -7/Factory | Build established: Tank 8468 | -7/Factory | Fabricated Imp. Treads? 8511 | -7/Factory | Build established: Gunner 8797 | -7/Factory | Cargo convoy interrupted 8870 | -7/Factory | Lost 15 parts (4n6u5w) 8953 | -7/Factory | Lost 3 parts (2n1w) 9104 | -7/Factory | Build established: Mutant 9173 | -7/Factory | Lost 3 parts (1p2n) 9208 | -7/Factory | Core integrity fell below 50% 9236 | -7/Factory | Core integrity fell below 20% 9337 | -7/Factory | Destroyed by S-27 Virus with Autogun Last Messages --------------- Med. Treads destroyed. S2SO7XHRLO7G3O2BZ:KCJP5D System corrupted: Component data lost. Dropped Med. Treads. Acquired 1 matter. W-25 Informer sends out distress signal. ALERT: Suspicious intruders detected, dispatching Cutter reinforcements to area. Map ----- +----------------------------------------------------+ | ??????????????????# #???# #???# #?????? | | ??????????????????# #???# #???# ] #?????? | | ??????????????????# #???# #???# #?????? | | ??????????????????# ##??# #???##+###"+##########?? | | ??????????######### ##### ###### ## #?? | | ??????????# ! + ## #?? | | ??????????# = # ## #?? | | ??????????# # ""% ## +?? | | ??????????# # """ ##% #?? | | ??????????######### """ ## #?? | | ???????????######## ## #?? | | ???? """ #?? | | ???????????######## """ #?? | | ???????????# # """ !! #?? | | ???????????# # ! % +?? | | ???????????#!! * # !! * #?? | | ???????????#!! # ""T"" """ ! *!] #?? | | ???????????#! + """"" """ % !][ ##? | | ???????????# # """ % ## | | ???????????######## s "" ] ! | | ??????????? ####s#### "" " | | ??????? ########/## # "G" | | ?????????????????? #"S # " | | ?????????????????? #""" # ! | | ?????????????????"" # "" ! # ! | | ?????????????????""" # @ ##### ######### | | ???????????????? S" # #???# ????????# | | ????????????????[ # #???# ????????# | | ?????????????????##### #?????????????# | | ?????????????????????# #?????????????# | | ?????????????????????# #????H????????# | | ?????????????????????# #?????????????# | | ?????????????????????# #?????????????# | | ?????????????????????# #?????????????# | | ?????????????????????########?????????????# | | ??????????????????????????????????????????# #### | | ??????????????????????????????????????????# #??# | | ??????????????????????????????????????????# #??# | | ??????????????????????????????????????????# #??# | | ??????????????????????????????????????????# #??# | | ????????????????????????????????????????### #??# | | ????????????????????????????????????????? #??# | | ??????????????????????????????????????????# #??# | | ???????????????????????????????############ #### | | ???????????????????????????????# """""" ## ## | | ???????????????????????????????# """""" # # | | ???????????????????????????????# """""" # # " | | ???????????????????????????????# """""" + + " | | ???????????????????????????????# # # " | | ???????????????????????????????# # # | +----------------------------------------------------+ Best States ------------- Heat Dissipation 39 Energy Generation 14 Energy Capacity 280 Matter Stores 300 Matter Capacity 300 Sight Range 16 Terrain Scan Density 10 Jamming Range 12 Armor Coverage 300 Propulsion Shielding 66 Evasion (%) 50 Recoil Reduction 4 Kinecelleration 30 Offensive Hacking 10 Item Schematics ----------------- Hcp. Storage Unit | -10/Materials | Hacked Imp. Treads | -9/Materials | Scanalyzed Sml. Storage Unit | -8/Materials | Extracted Robot Schematics ------------------ None Fabricated ------------ Imp. Treads | x2 | -7/Factory Alien Tech Used ----------------- None Achievements -------------- None Challenges ------------ None Game ------ Seed GlidesysAlertSpear Manual? 0 Play Time 01:18:38 Cumulative 199.8 hours Start 2025.03.11 @ 12:55:44 End 2025.03.11 @ 14:24:35 Sessions 1 Manual Loads 0 Difficulty Rogue Special Mode None Game No. 246 Rogue 246 Adventurer 0 Explorer 0 Win Type - Total 2 Types 2/0/0/0/0/0/0/0/0 Lore% 28 Gallery% 62 Achievement% 51 Wizard Run 0 Options --------- Layout 1 ASCII 0 Keyboard 0 Movement Numpad Keybinds 0 Fullscreen 2 Font 24/Smallcaps Map View 50x35 Zoom Use 0% Tactical HUD 0 Map Filters NONE Filters NONE Steam 1 RUN: 395678e5-9496-4c66-9577-9f79e6141075